Cogmind - Beta 12 @@@ ROGUE MODE // 2023.11.10 @ 13:06:26 Player: Blaj Result: Destroyed by C-35 Carver with Improved Concussive RPG Performance ------------- Evolutions (6) 3000 Regions Visited (23) 4600 Robots Destroyed (419) 2095 Value Destroyed (16244) 16244 Prototype IDs (30) 600 Alien Tech Used (0) 0 Bonus (5956) 5956 TOTAL SCORE: 32495 Bonus ------- High Alert Combat Kills 1701 Follower Combat Kills 2155 Network Hubs Disabled 400 Met Data Miner 300 Met Imprinter 300 Built Enhanced Grunts 300 A7 Reached Mainframe 300 Met R17 at Cetus 500 Cogmind --------- Core Integrity 0/1150 Matter 107/300 Energy 64/100 System Corruption 15% Temperature Cool (0) Movement Core (50) Location -4/Factory Parts ------- > --- POWER (2) -------- (None) > --- PROPULSION (5) --- (None) > --- UTILITY (9) ------ (None) > --- WEAPON (3) ------- (None) > --- INVENTORY (5) ---- Advanced Energy Well (436) Advanced Melee Analysis Suite Centrium Medium Armor Plating Micro-nuke Launcher Peak State ------------ > --- POWER ------------ Neutrino Core Quantum Reactor > --- PROPULSION ------- Flexi-carbon Leg Armored Leg Enhanced Flexi-carbon Leg Advanced VSS Leg Advanced VSS Leg > --- UTILITY ---------- High-capacity Storage Unit Advanced Terrain Scan Processor Advanced Melee Analysis Suite Advanced Melee Analysis Suite Core Analyzer Layered Heavy Armor Plating Advanced Shield Generator Improved Hacking Suite > --- WEAPON ----------- Thunder Hammer Power Sword CR-A16's Behemoth Slayer > --- INVENTORY -------- Neutrino Core Armored Leg Advanced VSS Leg Advanced Energy Well Advanced Terrain Scanner Advanced Melee Analysis Suite Advanced Actuator Array Force Booster Transmission Jammer ECM Suite Centrium Medium Armor Plating Centrium Medium Armor Plating Centrium Medium Armor Plating Experimental Thermal Shield Improved Hardlight Generator Improved Corruption Screen Advanced Variable Charge Gun Improved Grenade Launcher [Rating: 120] Favorites ----------- Power Neutrino Core Engine Heavy Ion Engine Power Core Neutrino Core Reactor Antimatter Reactor Propulsion Titanium Leg Leg Titanium Leg Utility High-capacity Storage Unit Device Seismic Detector Storage High-capacity Storage Unit Processor Core Analyzer Hackware Improved Hacking Suite Protection Powered Armor Weapon Power Sword Energy Gun Heavy EM Pulse Gun Energy Cannon Advanced Beam Cannon Ballistic Gun Assault Rifle Launcher Improved Grenade Launcher Special Weapon Mining Laser Impact Weapon Thunder Hammer Slashing Weapon Power Sword Piercing Weapon Makeshift Spear Build | -11 -10 -10 -9 -9 -9 -8 -8 -7 -7 -7 -7 -6 -6 -6 -6 -6 -5 -5 -5 -5 -5 -5 -4 ------- Run | Jun Mat Min Mat Min Exi Min Mat Fac Low Low Zio Pro Fac Low Low Dat Pro Fac Ext Cet Arc Hub Fac Slots Evolved 12 | . . . 2 . . . 2 2 . . . . 2 . . . . 2 . . . . 2 Power 1 | . . . . . . . . . . . . . . . . . . 1 . . . . . Propulsion 3 | . . . 1 . . . 1 1 . . . . . . . . . . . . . . . Utility 7 | . . . 1 . . . 1 1 . . . . 2 . . . . 1 . . . . 1 Weapon 1 | . . . . . . . . . . . . . . . . . . . . . . . 1 Parts Attached 587 | 2 22 8 43 12 1 1 39 48 21 11 9 6 112 11 25 23 3 42 29 15 3 34 67 Power 36 | . . 1 2 . 1 . 3 2 . 2 . . 9 . . 1 . 4 1 2 . 4 4 Engine 14 | . . 1 2 . 1 . 3 2 . 1 . . 4 . . . . . . . . . . Core 13 | . . . . . . . . . . 1 . . 5 . . . . 2 1 . . 2 2 Reactor 9 | . . . . . . . . . . . . . . . . 1 . 2 . 2 . 2 2 Propulsion 91 | . 1 1 7 2 . . 12 9 1 1 . 1 14 1 2 6 . 3 9 2 1 2 16 Treads . | . . . . . . . . . . . . . . . . . . . . . . . . Leg 91 | . 1 1 7 2 . . 12 9 1 1 . 1 14 1 2 6 . 3 9 2 1 2 16 Wheel . | . . . . . . . . . . . . . . . . . . . . . . . . Hover . | . . . . . . . . . . . . . . . . . . . . . . . . Flight . | . . . . . . . . . . . . . . . . . . . . . . . . Utility 337 | 1 15 3 16 6 . 1 17 32 14 4 9 5 62 7 18 11 . 31 12 8 2 24 39 Device 210 | 1 6 . 5 4 . 1 6 18 10 2 7 4 45 5 15 7 . 21 9 4 2 13 25 Storage 9 | . 3 . 2 . . . . 1 . . . . . . . 1 . . 1 . . . 1 Processor 11 | . . . . 1 . . 2 . . . . . 3 . . . . 1 . . . 2 2 Hackware 7 | . . . . . . . . 2 . . . . . . . . . 2 . . . 2 1 Protection 100 | . 6 3 9 1 . . 9 11 4 2 2 1 14 2 3 3 . 7 2 4 . 7 10 Artifact . | . . . . . . . . . . . . . . . . . . . . . . . . Weapon 123 | 1 6 3 18 4 . . 7 5 6 4 . . 27 3 5 5 3 4 7 3 . 4 8 Energy Gun 13 | . 4 2 3 . . . . . . . . . . . . . . . . 1 . 2 1 Energy Cannon 14 | . 1 . 1 . . . . 2 1 . . . 6 1 . 1 . 1 . . . . . Ballistic Gun 1 | 1 . . . . . . . . . . . . . . . . . . . . . . . Ballistic Cannon . | . . . . . . . . . . . . . . . . . . . . . . . . Launcher 22 | . . . 4 . . . 3 . 2 2 . . 4 1 2 . 1 . . . . . 3 Special Weapon 3 | . . 1 . 2 . . . . . . . . . . . . . . . . . . . Impact Weapon 28 | . . . 7 2 . . 2 . 1 . . . 8 . 2 1 . 2 1 1 . . 1 Slashing Weapon 29 | . 1 . 3 . . . 2 2 . 2 . . 7 . 1 . 2 1 5 1 . 2 . Piercing Weapon 13 | . . . . . . . . 1 2 . . . 2 1 . 3 . . 1 . . . 3 Special Melee Weapon . | . . . . . . . . . . . . . . . . . . . . . . . . Unidentified Prototypes 16 | . . . 2 . . . 1 1 . . 2 . 3 . . 3 . 1 . 2 . 1 . Corrupted Parts 4 | . . . . . . . . . . . . 1 . . . 1 . . . . . . 2 System Corruption 29 | . . . . . . . . . . . . 11 . . . 11 . . . . . . 7 Parts Lost 112 | . 1 7 13 4 . . 14 5 1 1 . . 18 2 3 3 . 6 . 1 . 3 30 Power 18 | . . 1 . . . . 2 1 . 1 . . 3 . . 1 . 2 . . . 2 5 Propulsion 41 | . . 1 3 2 . . 7 3 1 . . . 7 1 1 1 . . . . . . 14 Utility 40 | . . 2 7 2 . . 4 1 . . . . 8 1 2 1 . 3 . . . 1 8 Weapon 13 | . 1 3 3 . . . 1 . . . . . . . . . . 1 . 1 . . 3 Highest Loss Streak 10 | . 1 7 2 2 . . 6 3 1 1 . . 5 1 1 1 . 2 . 1 . 2 10 To Critical Strikes . | . . . . . . . . . . . . . . . . . . . . . . . . Average Slot Usage (%) 97 | . 99 100 99 97 100 100 98 96 100 93 91 92 96 99 100 99 100 99 100 100 100 100 85 Engine 4 | . 14 14 10 11 11 11 8 6 7 1 . . 1 6 6 3 . . . . . . . Core 1 | . . . . . . . . . . 5 7 7 4 . . . . 4 5 3 . . 4 Reactor 2 | . . . . . . . . . . . . . . . . 2 6 5 5 7 11 10 4 Leg 32 | . 28 28 32 33 33 33 34 37 38 38 38 38 30 32 33 32 33 29 29 29 29 29 24 Device 10 | . 10 4 5 7 . 9 8 11 14 14 15 15 14 17 13 13 13 8 10 11 11 5 6 Storage 7 | . 14 14 11 11 11 11 9 7 7 7 7 7 6 6 6 6 6 5 5 5 5 5 4 Processor 10 | . . . . . 11 11 7 7 7 7 7 7 13 14 13 13 13 17 17 17 17 18 19 Hackware 1 | . . . . . . . . 2 . . . . . . . . . 3 . . . 7 4 Protection 9 | . 3 9 16 12 11 1 10 8 7 7 6 7 10 6 12 13 13 9 11 11 11 6 6 Energy Gun 1 | . 25 10 2 . . . . . . . . . . . . . . . . . . . . Impact Weapon 4 | . . . 8 8 11 11 8 3 3 . . . 4 . 5 1 . 4 4 1 5 5 4 Slashing Weapon 6 | . . 14 8 11 11 11 9 7 2 6 7 7 5 6 5 6 4 5 4 8 5 4 3 Naked Turns 69 | . . . . . . . . . . . . . . . . . . . . . . . 69 Heaviest Build 110 | 14 38 35 64 58 55 55 86 90 92 91 72 75 98 80 89 92 82 109 107 105 105 103 110 Greatest Support 125 | 20 20 20 33 33 33 33 68 88 88 88 84 87 93 92 88 116 116 116 125 122 122 117 112 Greatest Overweight (x) 2 | . 1 1 2 1 1 1 1 1 1 1 . . 1 1 1 1 . . . . . . 1 Average Overweight (x) . | . . 1 1 1 1 1 . . . . . . . . . . . . . . . . . Largest Inventory Capacity 20 | 8 20 15 20 20 20 20 20 20 20 20 20 20 20 20 20 20 20 20 20 20 20 20 20 Average Capacity 19 | 8 14 15 19 20 20 20 20 20 20 20 20 20 20 20 20 20 20 20 20 20 20 20 19 Most Carried 20 | 6 15 15 20 20 17 19 20 20 20 20 20 20 20 20 20 20 20 20 20 20 20 20 20 Average Carried 18 | 2 12 12 15 16 17 18 19 19 19 18 19 20 18 19 19 19 20 19 19 19 19 19 17 Final Capacity 20 | 8 15 15 20 20 20 20 20 20 20 20 20 20 20 20 20 20 20 20 20 20 20 20 5 Final Carried 20 | 2 15 8 17 18 17 19 20 19 20 18 20 20 20 20 20 20 20 19 20 20 20 18 4 Class Distribution -------------------- 53% | Scavenger-Mutant 34% | Mutant 4% | Gladiator 3% | Machinist-Mutant Dominant Class ---------------- Mutant | -10/Materials Mutant | -10/Mines Mutant | -9/Materials Scavenger-Mutant | -9/Mines Scavenger-Mutant | -9/Exiles Scavenger-Mutant | -8/Mines Mutant | -8/Materials Scavenger-Mutant | -7/Factory Mutant | -7/Lower Caves Gladiator | -7/Lower Caves Mutant | -7/Zion Scavenger-Mutant | -6/Proximity Caves Mutant | -6/Factory Mutant | -6/Lower Caves Machinist-Mutant | -6/Lower Caves Machinist-Mutant | -6/Data Miner Scavenger-Mutant | -5/Proximity Caves Scavenger-Mutant | -5/Factory Commander-Mutant | -5/Extension Scavenger-Mutant | -5/Cetus Scavenger-Mutant | -5/Archives Scavenger-Mutant | -5/Hub_04(d) Scavenger-Mutant | -4/Factory Resources | -11 -10 -10 -9 -9 -9 -8 -8 -7 -7 -7 -7 -6 -6 -6 -6 -6 -5 -5 -5 -5 -5 -5 -4 ----------- Run | Jun Mat Min Mat Min Exi Min Mat Fac Low Low Zio Pro Fac Low Low Dat Pro Fac Ext Cet Arc Hub Fac Matter Collected 6647 | 232 140 . 603 218 . 77 457 427 327 204 98 54 897 381 378 221 87 437 235 220 10 306 638 Remotely . | . . . . . . . . . . . . . . . . . . . . . . . . Salvage Created 18168 | 82 487 . 2014 232 . 63 2808 757 563 92 . 195 3004 230 740 342 77 1637 645 180 97 1057 2866 Parts 786 | 6 29 . 129 10 . 7 110 41 31 9 . 8 109 8 12 17 9 69 11 7 7 50 107 Haulers Intercepted 20 | . 2 . 4 . . . 4 . . . . . 5 . . . . 1 4 . . . . Recyclers Shooed 6 | 1 . . . 1 . . . . . . . . 4 . . . . . . . . . . Parts Field Recycled . | . . . . . . . . . . . . . . . . . . . . . . . . Retrieved Matter . | . . . . . . . . . . . . . . . . . . . . . . . . Parts Self-Destructed 65 | . . . . . . . . . 26 8 . 7 . 8 7 . 9 . . . . . . Prevented 3 | . . . . . . . . . . . . . . . 3 . . . . . . . . Kills | -11 -10 -10 -9 -9 -9 -8 -8 -7 -7 -7 -7 -6 -6 -6 -6 -6 -5 -5 -5 -5 -5 -5 -4 ------- Run | Jun Mat Min Mat Min Exi Min Mat Fac Low Low Zio Pro Fac Low Low Dat Pro Fac Ext Cet Arc Hub Fac Combat Hostiles Destroyed 323 | . 9 . 50 5 . . 51 17 16 5 . 3 41 6 16 4 6 24 3 2 . 15 50 Melee 211 | . . . 27 5 . . 33 17 8 4 . 3 35 3 6 4 2 22 3 2 . 12 25 Guns 8 | . 8 . . . . . . . . . . . . . . . . . . . . . . Cannons 7 | . . . 7 . . . . . . . . . . . . . . . . . . . . AOE 55 | . 1 . 14 . . . 4 . 7 1 . . . 3 8 . 4 . . . . . 13 Classes Destroyed 23 | 2 6 . 5 1 . . 4 1 . 1 . . . 1 . . 1 . 1 . . . . Worker 14 | . . . 3 . . 2 2 1 . . . . 3 . . . . . . . . . 3 Builder 16 | . 2 . 2 . . . 4 1 . . . . 1 . . . . . 1 . . 4 1 Tunneler 5 | 1 . . . . . 1 1 . . . . . 1 . . . . . . . . . 1 Hauler 20 | . 2 . 4 . . . 4 . . . . . 5 . . . . 1 4 . . . . Recycler 13 | 1 . . 2 1 . . 2 . . . . . 4 . . . . 2 . . . . 1 Minesweeper 1 | . . . . . . . . . . . . . . 1 . . . . . . . . . Mechanic 6 | . . . . . . . 1 1 . . . . . . 1 . . . . . . . 3 Operator 9 | . 1 . 2 . . . . 1 . . . . 1 . . . . 1 . . 3 . . Drone 2 | . . . . . . . . . . . . . . . . . 2 . . . . . . Watcher 17 | . 1 . 2 . . . 3 . . . . . 2 . . . . 2 1 1 . 3 2 Swarmer 81 | . 3 . 14 . . . 3 9 5 4 . . 16 . 3 . 4 7 . . . . 13 Grunt 126 | . 6 . 22 3 . . 29 2 8 . . 3 11 3 10 . . 5 . . . 3 21 Brawler 8 | . . . 2 1 . . 3 . . . . . . 1 . . . . . . . . 1 Duelist 8 | . . . 2 . . . 1 . 1 . . . 1 1 1 . . 1 . . . . . Protector 2 | . . . 1 . . . 1 . . . . . . . . . . . . . . . . Sentry 42 | . . . 9 . . . 9 3 1 . . . 8 1 2 . . 2 2 . . 4 1 Specialist 5 | . . . . . . . 2 . . . . . . . . . . 1 . . . . 2 Hunter 9 | . . . . . . . 2 . . . . . . . . . . 2 . . . 2 3 Programmer 29 | . . . . . . . . 3 1 . . . 5 . . . . 6 . . . 6 8 Heavy 1 | . . . . . . . 1 . . . . . . . . . . . . . . . . Behemoth 2 | . . . . . . . . . . . . . . . . . . . 1 . . . 1 Cetus Guard 2 | . . . . . . . . . . . . . . . . . . . . 2 . . . Enhanced Grunt 4 | . . . . . . . . . . . . . . . . 4 . . . . . . . Thief 1 | . . . . . . . . . . 1 . . . . . . . . . . . . . Assembled 1 | . . . . 1 . . . . . . . . . . . . . . . . . . . Best Kill Streak 11 | 2 4 . 10 3 . 1 7 4 4 3 . 3 11 3 5 1 4 3 3 1 2 3 9 Combat Bots Only 10 | . 3 . 7 3 . . 6 4 4 3 . 3 10 3 4 1 4 3 2 1 . 3 8 Max Kills in Single Turn 5 | 1 3 . 4 2 . 1 1 1 3 1 . 1 1 1 2 1 2 1 1 1 1 1 5 Gunslinging . | . . . . . . . . . . . . . . . . . . . . . . . . Exploded 4 | . 1 . 4 . . . 1 . 3 1 . . . 1 2 . 2 . . . . . 4 Melee 2 | . . . 1 2 . . 1 1 1 1 . 1 1 1 1 1 1 1 1 1 . 1 2 Uniques/NPCs Destroyed . | . . . . . . . . . . . . . . . . . . . . . . . . Combat | -11 -10 -10 -9 -9 -9 -8 -8 -7 -7 -7 -7 -6 -6 -6 -6 -6 -5 -5 -5 -5 -5 -5 -4 -------- Run | Jun Mat Min Mat Min Exi Min Mat Fac Low Low Zio Pro Fac Low Low Dat Pro Fac Ext Cet Arc Hub Fac Damage Taken 27043 | . 357 809 1773 306 . . 2617 2095 628 440 . 197 3275 779 1354 1035 213 2063 845 360 44 1515 6338 Core 3192 | . 72 151 230 73 . . 360 154 61 25 . . 331 12 155 36 33 136 72 14 22 101 1154 Absorbed by Shields 4182 | . . . 155 . . . . 59 64 . . 67 1208 . 529 . . 528 60 77 . 210 1225 Regen/Repaired (Parts) 450 | . . . 179 . . . 124 147 . . . . . . . . . . . . . . . Core Remaining (%) 47 | 100 . 10 . . . 24 34 . . . . 65 . . . . 33 . . . . 65 . Volleys Fired 194 | 9 27 4 45 4 . . 8 17 9 5 . . 10 9 10 . 3 3 . . . 12 19 Largest 2 | 2 2 1 2 1 . . 1 1 1 1 . . 1 1 1 . 1 1 . . . 1 1 Hottest 113 | 80 90 100 113 100 . . 30 65 39 39 . . 90 90 36 . 36 90 . . . 80 80 Shots Fired 242 | 18 54 4 57 4 . . 8 17 9 5 . . 10 9 10 . 3 3 . . . 12 19 Gun 106 | 18 54 1 12 . . . . . . . . . . . . . . . . . . 12 9 Cannon 55 | . . . 24 . . . . 17 . . . . 10 1 . . . 3 . . . . . Launcher 74 | . . . 21 . . . 8 . 9 5 . . . 8 10 . 3 . . . . . 10 Special 7 | . . 3 . 4 . . . . . . . . . . . . . . . . . . . Kinetic 4 | 4 . . . . . . . . . . . . . . . . . . . . . . . Thermal 92 | 9 . 3 24 4 . . . 17 . . . . 10 1 . . . 3 . . . 12 9 Explosive 74 | . . . 21 . . . 8 . 9 5 . . . 8 10 . 3 . . . . . 10 Electromagnetic 72 | 5 54 1 12 . . . . . . . . . . . . . . . . . . . . Robot Hit Streak 13 | 5 11 5 13 . . . 6 . 7 3 . . . 3 4 . . . . . . . 4 Robot Miss Streak 5 | 5 3 . 2 . . . 2 . 3 1 . . 2 . 2 . . . . . . . 1 Penetration Max . | . . . . . . . . . . . . . . . . . . . . . . . . Secondary Targets 2 | . 2 . . . . . . . . . . . . . . . . . . . . . . Max Gunslinging Chain 1 | . 1 . . . . . . . . . . . . . . . . . . . . . . Shots Hit Robots 963 | 8 34 2 118 10 . 3 151 66 16 7 . 6 158 14 44 30 2 76 26 9 3 66 114 Core Hits 484 | 3 18 1 78 5 . 2 46 22 22 9 . 4 52 16 28 16 8 33 8 5 3 24 81 Critical Kills 9 | . . . 1 . . . 1 . . . . . 1 . . . . . . . . 2 4 Critical Parts Destroyed 49 | . . . 2 . . . 19 . . . . . 4 . 1 . . 6 3 . . 3 11 Critical Strikes 115 | . . . 4 . . . 23 3 3 . . . 19 1 7 4 . 15 3 2 . 9 22 Meltdown 1 | . . . 1 . . . . . . . . . . . . . . . . . . . . Smash 57 | . . . 2 . . . 20 . . . . . 5 . 1 . . 6 3 . . 5 15 Sever 52 | . . . 1 . . . 3 3 2 . . . 12 1 6 4 . 9 . 2 . 4 5 Impale 5 | . . . . . . . . . 1 . . . 2 . . . . . . . . . 2 Melee Attacks 1358 | . 1 4 120 19 . 5 238 117 21 14 5 7 257 14 51 62 5 125 35 18 5 92 143 Impact 472 | . . . 35 5 . 2 131 32 3 . . . 86 1 8 5 . 26 18 . 2 36 82 Slashing 774 | . 1 4 85 14 . 3 107 83 9 8 5 7 116 11 43 45 3 99 7 18 3 56 47 Piercing 112 | . . . . . . . . 2 9 6 . . 55 2 . 12 2 . 10 . . . 14 Sneak Attacks 83 | . . . 9 1 . 3 16 3 . . . . 21 1 . 1 1 6 7 . 3 7 4 Combat Hostiles 5 | . . . . . . . 1 . . . . . 1 . . . 1 . . . . 2 . Follow-up Attacks 134 | . . . 4 3 . . 22 15 . 1 . . 34 . 5 10 . 10 7 2 . 11 10 Damage Inflicted 48793 | 98 755 45 4594 303 . 206 7276 2701 1171 505 . 298 7709 1039 2446 1152 390 3647 1382 448 372 3481 8775 Guns 754 | 98 547 14 95 . . . . . . . . . . . . . . . . . . . . Cannons 398 | . . . 398 . . . . . . . . . . . . . . . . . . . . Explosions 7604 | . 208 . 1133 . . . 719 . 609 374 . . . 567 834 . 272 . . . . . 2888 Melee 39868 | . . 22 2968 303 . 206 6512 2694 562 131 . 298 7702 472 1607 1152 118 3647 1365 448 372 3456 5833 Ramming 169 | . . 9 . . . . 45 7 . . . . 7 . 5 . . . 17 . . 25 54 Kinetic 25 | 25 . . . . . . . . . . . . . . . . . . . . . . . Thermal 674 | 45 208 . 421 . . . . . . . . . . . . . . . . . . . . Explosive 7216 | . . . 1110 . . . 719 . 609 374 . . . 567 834 . 272 . . . . . 2731 Electromagnetic 841 | 28 547 14 95 . . . . . . . . . . . . . . . . . . . 157 Impact 16174 | . . . 697 66 . . 4237 703 141 . . . 2873 33 254 . . 855 749 . . 1678 3888 Slashing 21718 | . . 22 2271 237 . 206 2275 1991 303 76 . 298 3950 410 1353 965 118 2792 273 448 372 1778 1580 Piercing 1976 | . . . . . . . . . 118 55 . . 879 29 . 187 . . 343 . . . 365 Highest Corruption 18 | . . 10 1 7 7 7 1 1 1 1 1 11 4 . . 11 11 6 . . . 3 18 Average Corruption 3 | . . 7 1 2 7 7 1 1 1 1 1 11 3 . . 11 11 2 . . . 2 7 Corruption Purged 19 | . . . . . . . . 1 . . . . 4 . . . . 6 . . . . 8 Corruption Blocked 1 | . . . . . . . . . . . . . . . . . . . . . . . 1 Effects 201 | . . 2 14 14 9 24 19 11 3 5 1 . 5 . . 11 19 4 . . . 11 49 Message Errors 47 | . . 1 1 5 1 5 6 3 1 1 . . . . . 2 3 2 . . . 3 13 Matter Fused 45 | . . . 3 1 1 4 4 1 1 . . . 2 . . 4 9 . . . . 3 12 Heat Flow Errors 32 | . . . 2 2 1 5 3 4 . . . . 2 . . 2 3 2 . . . 2 4 Energy Discharges 31 | . . 1 3 2 1 5 3 1 . . 1 . 1 . . 1 2 . . . . . 10 Parts Rejected 3 | . . . . . . . . 1 . . . . . . . 1 . . . . . . 1 Parts Fused 3 | . . . 1 . . 1 . . . 1 . . . . . . . . . . . . . Data Loss (minor) 26 | . . . 3 2 4 3 2 1 1 3 . . . . . . 1 . . . . 2 4 Data Loss (major) 9 | . . . . 1 1 1 . . . . . . . . . 1 1 . . . . 1 3 Misfires 1 | . . . 1 . . . . . . . . . . . . . . . . . . . . Alerts 4 | . . . . 1 . . 1 . . . . . . . . . . . . . . . 2 Overload Shots . | . . . . . . . . . . . . . . . . . . . . . . . . Overflow Damage 6389 | . 32 . 324 10 . 28 1423 313 36 40 . . 1154 103 178 19 . 531 261 . . 609 1328 Projectiles 31 | . . . . . . . . . . . . . 31 . . . . . . . . . . Explosions 254 | . 32 . 17 . . . 23 . . 40 . . . 30 . . . . . . . . 112 Melee 6104 | . . . 307 10 . 28 1400 313 36 . . . 1123 73 178 19 . 531 261 . . 609 1216 Knockbacks 85 | . . 1 5 . . . 15 3 . . . . 17 . . . . 6 1 . . 5 32 Impact 74 | . . 1 4 . . . 15 3 . . . . 13 . . . . 6 1 . . 5 26 Kinetic . | . . . . . . . . . . . . . . . . . . . . . . . . Secondary 11 | . . . 1 . . . . . . . . . 4 . . . . . . . . . 6 Self-Inflicted Damage 417 | . 32 . 71 . . . 85 . 57 169 . . . 3 . . . . . . . . . Shots 11 | . 1 . 2 . . . 3 . 1 3 . . . 1 . . . . . . . . . Rammed . | . . . . . . . . . . . . . . . . . . . . . . . . Targets Rammed 27 | . . 2 . . . . 9 1 . . . . 1 . 2 . . . 1 . . 2 9 Kicked 27 | . . 2 . . . . 9 1 . . . . 1 . 2 . . . 1 . . 2 9 Crushed . | . . . . . . . . . . . . . . . . . . . . . . . . Highest Temperature 323 | 90 312 82 278 181 123 174 282 262 34 . . . 323 58 22 268 276 275 15 . . 230 236 Average Temperature 84 | 47 101 46 90 58 62 77 96 87 12 . . . 104 31 9 108 105 90 6 . . 91 73 Received Heat Transfer 5779 | . 102 227 548 18 . . 1026 303 144 12 . 49 820 225 514 . 18 278 200 51 . 303 941 Effects 1 | . . . 1 . . . . . . . . . . . . . . . . . . . . Energy Bleed 1 | . . . 1 . . . . . . . . . . . . . . . . . . . . Siege Activations . | . . . . . . . . . . . . . . . . . . . . . . . . Robots Corrupted . | . . . . . . . . . . . . . . . . . . . . . . . . Combat Hostiles . | . . . . . . . . . . . . . . . . . . . . . . . . Parts Fried 104 | . 6 . 8 2 . . 21 3 . . . . 17 . 2 . . 7 5 . . 10 23 Impact Corruptions 170 | . . . 8 1 . . 47 6 1 . . . 30 . 4 . . 14 9 . . 16 34 Robots Melted 1 | . . . 1 . . . . . . . . . . . . . . . . . . . . Combat Hostiles 1 | . . . 1 . . . . . . . . . . . . . . . . . . . . Parts Melted 2 | . . . 2 . . . . . . . . . . . . . . . . . . . . Heat Transferred 1166 | 100 350 . 716 . . . . . . . . . . . . . . . . . . . . Parts Sabotaged . | . . . . . . . . . . . . . . . . . . . . . . . . Parts Stolen 1 | . . . . . . . . . . 1 . . . . . . . . . . . . . Parts Stripped . | . . . . . . . . . . . . . . . . . . . . . . . . Power Chain Reactions 5 | . 4 . 1 . . . . . . . . . . . . . . . . . . . . Missiles Intercepted . | . . . . . . . . . . . . . . . . . . . . . . . . Alert | -11 -10 -10 -9 -9 -9 -8 -8 -7 -7 -7 -7 -6 -6 -6 -6 -6 -5 -5 -5 -5 -5 -5 -4 ------- Run | Jun Mat Min Mat Min Exi Min Mat Fac Low Low Zio Pro Fac Low Low Dat Pro Fac Ext Cet Arc Hub Fac Peak Influence 1183 | 10 208 30 1068 387 . 10 840 555 . . . . 503 . . . . 447 647 1044 482 502 1183 Initial 387 | . 6 7 7 387 . . 3 373 . . . . . . . . . 150 185 248 382 7 245 Average 343 | 4 81 7 574 264 . 2 482 339 . . . . 302 . . . . 316 408 659 130 183 463 Maximum Alert Level 4 | . 1 . 3 1 . . 3 2 . . . . 2 . . . . 2 2 3 2 2 4 Low Security (%) 27 | 100 98 100 14 45 . 100 10 2 . . . . 22 . . . . 5 2 . 70 55 6 Level 1 38 | . 1 . 19 54 . . 18 65 . . . . 47 . . . . 85 52 26 15 41 50 Level 2 26 | . . . 30 . . . 56 31 . . . . 29 . . . . 9 45 36 14 2 24 Level 3 7 | . . . 35 . . . 14 . . . . . . . . . . . . 36 . . 12 Level 4 . | . . . . . . . . . . . . . . . . . . . . . . . 5 Level 5 . | . . . . . . . . . . . . . . . . . . . . . . . . High Security . | . . . . . . . . . . . . . . . . . . . . . . . . Max Security . | . . . . . . . . . . . . . . . . . . . . . . . . Sterilizations 2 | . . . 1 . . . 1 . . . . . . . . . . . . . . . . Squads Dispatched 71 | . . . 7 1 . . 10 5 . . . . 13 . 1 . . 8 1 . . 9 16 Investigation 14 | . . . 3 1 . . . 1 . . . . 2 . . . . 1 1 . . 2 3 Extermination 19 | . . . . . . . . 4 . . . . 6 . . . . 3 . . . 3 3 Reinforcement 26 | . . . 2 . . . 7 . . . . . 4 . . . . 4 . . . 4 5 Assault 12 | . . . 2 . . . 3 . . . . . 1 . 1 . . . . . . . 5 Garrison . | . . . . . . . . . . . . . . . . . . . . . . . . Intercept . | . . . . . . . . . . . . . . . . . . . . . . . . Searches Triggered . | . . . . . . . . . . . . . . . . . . . . . . . . Construction Impeded 3 | . . . . . . . 3 . . . . . . . . . . . . . . . . Haulers Reinforced 3 | . . . . . . . . . . . . . 2 . . . . . . . . 1 . Active Scanning Responses . | . . . . . . . . . . . . . . . . . . . . . . . . Cargo Convoy Interrupts . | . . . . . . . . . . . . . . . . . . . . . . . . Stealth | -11 -10 -10 -9 -9 -9 -8 -8 -7 -7 -7 -7 -6 -6 -6 -6 -6 -5 -5 -5 -5 -5 -5 -4 --------- Run | Jun Mat Min Mat Min Exi Min Mat Fac Low Low Zio Pro Fac Low Low Dat Pro Fac Ext Cet Arc Hub Fac Distress Signals 32 | . 1 . 3 1 . . 4 4 . . . . 2 1 . . . 3 1 2 . 6 4 Communications Jammed 3 | . . . . . . . . . . . . . 1 . . . . . 1 . . 1 . Distress Signals 2 | . . . . . . . . . . . . . . . . . . . 1 . . 1 . Times Spotted 611 | . 18 10 81 5 . . 92 29 19 8 . 3 65 11 22 4 10 42 28 19 3 37 105 Peak Tracking Total 12 | . 4 9 9 3 . . 11 5 5 4 . 2 6 7 6 1 5 6 6 5 1 5 12 Tactical Retreats 72 | . . 2 5 . . . 13 4 5 2 . . 7 2 2 . . 7 1 1 . 7 14 Traps | -11 -10 -10 -9 -9 -9 -8 -8 -7 -7 -7 -7 -6 -6 -6 -6 -6 -5 -5 -5 -5 -5 -5 -4 ------- Run | Jun Mat Min Mat Min Exi Min Mat Fac Low Low Zio Pro Fac Low Low Dat Pro Fac Ext Cet Arc Hub Fac Traps Triggered 12 | . 1 . 2 . . . 1 1 . . . . 3 . . . . 1 1 . . . 2 Indirectly . | . . . . . . . . . . . . . . . . . . . . . . . . Trap Hack Attempts . | . . . . . . . . . . . . . . . . . . . . . . . . Triggered . | . . . . . . . . . . . . . . . . . . . . . . . . Disarmed . | . . . . . . . . . . . . . . . . . . . . . . . . Reprogrammed . | . . . . . . . . . . . . . . . . . . . . . . . . Reused 5 | . . . . . . . . . . . . . 4 . . . . 1 . . . . . Traps Extracted 2 | . . . . . . . . . . . . . . 2 . . . . . . . . . Installed 6 | . . . . . . . . . . . . . 4 . . . . 2 . . . . . Triggered 7 | . . . . . . . . . 1 . . . 4 1 . . . 1 . . . . . Most Traps Carried 4 | . . . . 4 4 4 4 4 4 4 4 4 4 2 2 2 2 2 . . . . . Machines | -11 -10 -10 -9 -9 -9 -8 -8 -7 -7 -7 -7 -6 -6 -6 -6 -6 -5 -5 -5 -5 -5 -5 -4 ---------- Run | Jun Mat Min Mat Min Exi Min Mat Fac Low Low Zio Pro Fac Low Low Dat Pro Fac Ext Cet Arc Hub Fac Machines Disabled 17 | . 2 . . . . . 3 . . 1 . . . . 1 1 . . 1 . 3 1 4 Max in Single Turn 1 | . 1 . . . . . 1 . . 1 . . . . 1 1 . . . . . . 1 Garrison Access 3 | . . . . . . . 1 . . . . . . . . . . 1 . . . . 1 Network Hub 2 | . . . . . . . . . . . . . . . . . . . . . . 2 . Machines Repaired 2 | . . . . . . . . . . . . . . . . . . . . . . 2 . Machines Sabotaged . | . . . . . . . . . . . . . . . . . . . . . . . . Overloaded Fab Kills . | . . . . . . . . . . . . . . . . . . . . . . . . Hacking | -11 -10 -10 -9 -9 -9 -8 -8 -7 -7 -7 -7 -6 -6 -6 -6 -6 -5 -5 -5 -5 -5 -5 -4 --------- Run | Jun Mat Min Mat Min Exi Min Mat Fac Low Low Zio Pro Fac Low Low Dat Pro Fac Ext Cet Arc Hub Fac Machines Accessed 96 | . 10 . 12 1 1 . 13 13 . . . 1 11 . . 4 . 5 3 2 . 9 11 Terminals 56 | . 8 . 8 . . . 10 6 . . . 1 . . . . . 1 3 2 . 8 9 Fabricators 7 | . . . . . . . . 1 . . . . 4 . . . . 1 . . . . 1 Repair Stations 8 | . . . 2 . . . 1 2 . . . . 2 . . . . 1 . . . . . Recycling Units 6 | . 2 . 2 . . . . 1 . . . . 1 . . . . . . . . . . Scanalyzers 3 | . . . . . . . 1 . . . . . 1 . . . . 1 . . . . . Garrison Access 10 | . . . . . . . 1 3 . . . . 3 . . . . 1 . . . 1 1 Total Hacks 284 | . 26 . 37 1 1 . 45 27 . . . 1 26 . . 28 . 14 3 6 . 28 41 Successful 142 | . 13 . 17 1 1 . 25 10 . . . 1 13 . . 28 . 8 2 2 . 13 8 Failed 141 | . 12 . 20 . . . 20 17 . . . . 13 . . . . 6 1 4 . 15 33 Catastrophic 21 | . 1 . 1 . . . 4 5 . . . . 1 . . . . . . . . 1 8 Database Lockouts 1 | . 1 . . . . . . . . . . . . . . . . . . . . . . Manual 107 | . 17 . 23 . . . 26 3 . . . . 6 . . . . 2 . 1 . 20 9 Terminals 172 | . 23 . 27 . . . 30 11 . . . 1 7 . . . . 2 3 6 . 27 35 Fabricators 16 | . . . . . . . . 2 . . . . 7 . . . . 3 . . . . 4 Repair Stations 20 | . . . 6 . . . 4 5 . . . . 3 . . . . 2 . . . . . Recycling Units 14 | . 3 . 4 . . . . 4 . . . . 3 . . . . . . . . . . Scanalyzers 15 | . . . . . . . 8 . . . . . 2 . . . . 5 . . . . . Garrison Access 17 | . . . . . . . 3 5 . . . . 4 . . . . 2 . . . 1 2 Terminal Hacks 76 | . 7 . 7 1 1 . 8 3 . . . 1 2 . . 28 . 1 2 2 . 8 5 Record 16 | . 1 . . . 1 . . . . . . 1 . . . 11 . . . 2 . . . Part Schematic 10 | . . . . . . . . . . . . . . . . 10 . . . . . . . Robot Schematic 4 | . . . . . . . . . . . . . . . . 4 . . . . . . . Robot Analysis 9 | . 2 . 6 . . . 1 . . . . . . . . . . . . . . . . Prototype ID Bank 4 | . . . . . . . . . . . . . 1 . . 3 . . . . . . . Open Door 3 | . . . . 1 . . . . . . . . . . . . . . 2 . . . . Level Access Points 1 | . . . . . . . . . . . . . . . . . . . . . . 1 . Branch Access Points 2 | . . . . . . . 1 1 . . . . . . . . . . . . . . . Machine Index 1 | . . . . . . . . . . . . . . . . . . . . . . . 1 Terminal Index 3 | . . . . . . . 1 1 . . . . . . . . . . . . . 1 . Alert Level 4 | . . . . . . . 2 . . . . . . . . . . . . . . 1 1 Unreport Threat 5 | . . . . . . . 3 1 . . . . . . . . . 1 . . . . . Locate Traps 1 | . 1 . . . . . . . . . . . . . . . . . . . . . . Dispatch Records 2 | . 1 . . . . . . . . . . . . . . . . . . . . 1 . Security Status 1 | . . . . . . . . . . . . . . . . . . . . . . 1 . Patrol Status 2 | . . . . . . . . . . . . . . . . . . . . . . 1 1 Hauler Manifests 3 | . . . 1 . . . . . . . . . 1 . . . . . . . . 1 . Registered Components 3 | . 1 . . . . . . . . . . . . . . . . . . . . 1 1 Zone Layout 2 | . 1 . . . . . . . . . . . . . . . . . . . . . 1 Fabricator Hacks 11 | . . . . . . . . 1 . . . . 6 . . . . 2 . . . . 2 Network Status 1 | . . . . . . . . . . . . . 1 . . . . . . . . . . Load Schematic 4 | . . . . . . . . . . . . . 2 . . . . 1 . . . . 1 Build 6 | . . . . . . . . 1 . . . . 3 . . . . 1 . . . . 1 Repair Station Hacks 12 | . . . 4 . . . 4 2 . . . . 1 . . . . 1 . . . . . Scan Component 7 | . . . 2 . . . 2 1 . . . . 1 . . . . 1 . . . . . Repair 5 | . . . 2 . . . 2 1 . . . . . . . . . . . . . . . Recycling Unit Hacks 4 | . 1 . 1 . . . . 2 . . . . . . . . . . . . . . . Retrieve Components 4 | . 1 . 1 . . . . 2 . . . . . . . . . . . . . . . Scanalyzer 12 | . . . . . . . 7 . . . . . 2 . . . . 3 . . . . . Insert Component 7 | . . . . . . . 4 . . . . . 1 . . . . 2 . . . . . Analyze 5 | . . . . . . . 3 . . . . . 1 . . . . 1 . . . . . Garrison Access Hacks 2 | . . . . . . . . . . . . . . . . . . 1 . . . . 1 Seal Access 2 | . . . . . . . . . . . . . . . . . . 1 . . . . 1 Unauthorized Hacks 25 | . 5 . 5 . . . 6 2 . . . . 2 . . . . . . . . 5 . Terminals 21 | . 5 . 5 . . . 6 . . . . . . . . . . . . . . 5 . Track 1 | . . . . . . . . . . . . . . . . . . . . . . 1 . Assimilate 3 | . . . 1 . . . 1 . . . . . . . . . . . . . . 1 . Botnet 13 | . 4 . 4 . . . 5 . . . . . . . . . . . . . . . . Operators 2 | . 1 . . . . . . . . . . . . . . . . . . . . 1 . Sabotage 2 | . . . . . . . . . . . . . . . . . . . . . . 2 . Fabricators . | . . . . . . . . . . . . . . . . . . . . . . . . Repair Stations . | . . . . . . . . . . . . . . . . . . . . . . . . Recycling Units 4 | . . . . . . . . 2 . . . . 2 . . . . . . . . . . Recyclers 2 | . . . . . . . . 1 . . . . 1 . . . . . . . . . . Mask 2 | . . . . . . . . 1 . . . . 1 . . . . . . . . . . Scanalyzers . | . . . . . . . . . . . . . . . . . . . . . . . . Garrison Access . | . . . . . . . . . . . . . . . . . . . . . . . . Data Cores Recovered 2 | . 1 . . . . . . 1 . . . . . . . . . . . . . . . Used 1 | . . . . . . . . 1 . . . . . . . . . . . . . . . Hacking Detections 84 | . 8 . 11 . . . 12 12 . . . 1 13 . . . . 5 1 3 . 8 10 Full Trace Events 12 | . . . 2 . . . 3 1 . . . . 2 . . . . 1 . . . . 3 Feedback Events 2 | . . . 1 . . . . . . . . . . . . . . . . . . . 1 Corruption 2 | . . . 1 . . . . . . . . . . . . . . . . . . . 1 Feedback Blocked . | . . . . . . . . . . . . . . . . . . . . . . . . Robot Schematics Acquired 4 | . . . . . . . . . . . . . . . . 4 . . . . . . . Robots Built . | . . . . . . . . . . . . . . . . . . . . . . . . Authchips . | . . . . . . . . . . . . . . . . . . . . . . . . Time . | . . . . . . . . . . . . . . . . . . . . . . . . Total Robot Build Rating . | . . . . . . . . . . . . . . . . . . . . . . . . Part Schematics Acquired 15 | . . . . . . . 3 . . . . . 1 . . 10 . 1 . . . . . Parts Built 10 | . . . . . . . . 1 . . . . 5 . . . . 2 . . . . 2 Authchips . | . . . . . . . . . . . . . . . . . . . . . . . . Time 440 | . . . . . . . . 117 . . . . 229 . . . . 47 . . . . 47 Total Part Build Rating 54 | . . . . . . . . 7 . . . . 27 . . . . 10 . . . . 10 Parts Repaired 5 | . . . 2 . . . 2 1 . . . . . . . . . . . . . . . Time 181 | . . . 83 . . . 76 22 . . . . . . . . . . . . . . . Parts Recycled . | . . . . . . . . . . . . . . . . . . . . . . . . Recycled Matter . | . . . . . . . . . . . . . . . . . . . . . . . . Retrieved Matter . | . . . . . . . . . . . . . . . . . . . . . . . . Retrieved Components 7 | . 2 . 5 . . . . . . . . . . . . . . . . . . . . Parts Scanalyzed 5 | . . . . . . . 3 . . . . . 1 . . . . 1 . . . . . Part Schematics Acquired 5 | . . . . . . . 3 . . . . . 1 . . . . 1 . . . . . Parts Damaged 1 | . . . . . . . 1 . . . . . . . . . . . . . . . . Bothacking | -11 -10 -10 -9 -9 -9 -8 -8 -7 -7 -7 -7 -6 -6 -6 -6 -6 -5 -5 -5 -5 -5 -5 -4 ------------ Run | Jun Mat Min Mat Min Exi Min Mat Fac Low Low Zio Pro Fac Low Low Dat Pro Fac Ext Cet Arc Hub Fac Used RIF Installer . | . . . . . . . . . . . . . . . . . . . . . . . . Robots Hacked . | . . . . . . . . . . . . . . . . . . . . . . . . Non-combat . | . . . . . . . . . . . . . . . . . . . . . . . . Combat . | . . . . . . . . . . . . . . . . . . . . . . . . Robot Hacks Applied . | . . . . . . . . . . . . . . . . . . . . . . . . Relay Couplers Released 4 | . . . . . . . 1 . . . . . . . . . . . . . . . 3 Machine Destruction 1 | . . . . . . . 1 . . . . . . . . . . . . . . . . Programmers 3 | . . . . . . . . . . . . . . . . . . . . . . . 3 Fabnet Peak Effective % . | . . . . . . . . . . . . . . . . . . . . . . . . Robots Rewired 30 | . . . . . . . . . 1 . . . . 2 1 . . . 26 . . . . Allies Hacked . | . . . . . . . . . . . . . . . . . . . . . . . . Hacks Repelled . | . . . . . . . . . . . . . . . . . . . . . . . . Allies | -11 -10 -10 -9 -9 -9 -8 -8 -7 -7 -7 -7 -6 -6 -6 -6 -6 -5 -5 -5 -5 -5 -5 -4 -------- Run | Jun Mat Min Mat Min Exi Min Mat Fac Low Low Zio Pro Fac Low Low Dat Pro Fac Ext Cet Arc Hub Fac Total Allies 46 | . . . 1 . . . 1 . 1 . . . . 2 1 . . . 34 5 . 1 . Largest Group 19 | . . . 1 . . . . . 1 . . . . 2 1 . . . 19 16 10 3 . Highest-Rated Group 889 | . . . 10 . . . . . 16 . . . . 61 30 . . . 623 889 597 212 . Highest-Rated Ally 159 | . . . 10 . . . . . 16 . . . . 32 30 . . . 159 159 151 96 . Total Orders 41 | . . . . . . . . . . . . . 16 . . . . 6 8 5 . 6 . STAY 5 | . . . . . . . . . . . . . . . . . . . . 2 . 3 . FOLLOW 6 | . . . . . . . . . . . . . . . . . . 1 1 1 . 3 . EXPLORE 3 | . . . . . . . . . . . . . 3 . . . . . . . . . . RETURN 27 | . . . . . . . . . . . . . 13 . . . . 5 7 2 . . . Ally Attacks 443 | . . . . . . . . . . . . . . 8 . . . . 181 164 60 30 . Total Damage 11299 | . . . . . . . . . . . . . . 226 . . . . 3776 4598 1747 952 . Kills 67 | . . . . . . . . . . . . . . 1 . . . . 31 28 4 3 . Allies Corrupted . | . . . . . . . . . . . . . . . . . . . . . . . . Allies Melted . | . . . . . . . . . . . . . . . . . . . . . . . . Intel | -11 -10 -10 -9 -9 -9 -8 -8 -7 -7 -7 -7 -6 -6 -6 -6 -6 -5 -5 -5 -5 -5 -5 -4 ------- Run | Jun Mat Min Mat Min Exi Min Mat Fac Low Low Zio Pro Fac Low Low Dat Pro Fac Ext Cet Arc Hub Fac Robot Analysis Total 9 | . 2 . 6 . . . 1 . . . . . . . . . . . . . . . . Derelict Logs Recovered 8 | . . . . 1 . . . . 1 1 . . . . 2 . 3 . . . . . . Drone Launches 27 | . . . . . . . . . . . . . 16 . . . . 4 6 1 . . . Drone Recoveries 25 | . . . . . . . . . . . . . 14 . . . . 4 6 1 . . . Exploration | -11 -10 -10 -9 -9 -9 -8 -8 -7 -7 -7 -7 -6 -6 -6 -6 -6 -5 -5 -5 -5 -5 -5 -4 ------------- Run | Jun Mat Min Mat Min Exi Min Mat Fac Low Low Zio Pro Fac Low Low Dat Pro Fac Ext Cet Arc Hub Fac Turns Passed 33921 | 68 1262 92 2909 945 358 726 3633 2784 1099 1137 1372 525 3685 766 1000 620 612 1894 1407 528 2680 1444 2375 Spaces Moved 16119 | 31 598 29 1130 445 188 377 1235 1686 566 838 1043 375 1746 423 641 317 379 929 781 304 76 733 1249 Core 166 | . . . . . . . . . . . . . . . . . . . . . . . 166 Treads . | . . . . . . . . . . . . . . . . . . . . . . . . Legs 15953 | 31 598 29 1130 445 188 377 1235 1686 566 838 1043 375 1746 423 641 317 379 929 781 304 76 733 1083 Wheels . | . . . . . . . . . . . . . . . . . . . . . . . . Hover . | . . . . . . . . . . . . . . . . . . . . . . . . Flight . | . . . . . . . . . . . . . . . . . . . . . . . . Fastest Speed 50 | 120 120 190 190 190 190 190 122 120 130 128 128 126 116 120 120 120 120 120 120 120 120 120 50 Average Speed 139 | 120 182 190 191 190 190 190 156 127 132 128 128 126 135 120 121 122 120 120 120 120 120 120 127 Slowest Speed 260 | 120 190 190 260 190 190 190 200 200 200 198 128 128 196 190 190 190 120 120 120 120 120 120 190 Overloaded Moves . | . . . . . . . . . . . . . . . . . . . . . . . . Propulsion Burnouts . | . . . . . . . . . . . . . . . . . . . . . . . . Robots Hopped . | . . . . . . . . . . . . . . . . . . . . . . . . Cave-ins Triggered . | . . . . . . . . . . . . . . . . . . . . . . . . Exploration Rate (%) 63 | 3 98 16 92 88 58 91 94 36 59 83 85 58 53 51 77 80 57 24 86 78 73 61 31 Regions Visited 23 Branch Regions 16 Pre-discovered Areas 6 | . . . . . 1 . . . 1 . 2 . . . . 1 1 . . . . . . Known Exits Taken 7 | . . . . . . . 1 1 . . . . 1 . . . 1 1 1 . . 1 . Unknown Exits Taken 16 | 1 1 1 1 1 1 1 . . 1 1 1 1 . 1 1 1 . . . 1 1 . . Scrap Searched 22 | . . . . 1 . 1 . . 1 3 3 3 . 3 4 . 3 . . . . . . Spaces Dug 241 | . . 4 5 2 . . 33 24 57 . . . 34 2 4 1 16 16 3 . . 15 25 Terrain Destroyed 706 | . 14 4 88 6 . . 54 39 124 39 . . 35 30 56 1 30 19 3 . . 19 145 Melee 151 | . . 1 5 2 . . 33 24 . . . . 27 1 4 1 1 16 3 . . 13 20 Projectile 45 | . . 3 . 4 . . . 15 . . . . 8 1 . . . 3 . . . 6 5 AOE 510 | . 14 . 83 . . . 21 . 124 39 . . . 28 52 . 29 . . . . . 120 Terrain Rammed . | . . . . . . . . . . . . . . . . . . . . . . . . Walls Destroyed . | . . . . . . . . . . . . . . . . . . . . . . . . Machines Disabled . | . . . . . . . . . . . . . . . . . . . . . . . . Actions | -11 -10 -10 -9 -9 -9 -8 -8 -7 -7 -7 -7 -6 -6 -6 -6 -6 -5 -5 -5 -5 -5 -5 -4 --------- Run | Jun Mat Min Mat Min Exi Min Mat Fac Low Low Zio Pro Fac Low Low Dat Pro Fac Ext Cet Arc Hub Fac Total 25575 | 45 708 46 1631 506 190 382 2696 2152 871 872 1070 409 2776 657 786 479 528 1532 1206 442 2659 1146 1786 Wait 6803 | . 32 . 267 19 . . 1148 257 246 2 1 21 615 178 54 70 140 416 124 95 2574 277 267 Move 16097 | 30 597 28 1129 444 187 376 1234 1685 565 837 1042 374 1745 422 640 316 378 928 780 303 75 733 1249 Hop . | . . . . . . . . . . . . . . . . . . . . . . . . Pick Up 216 | . 17 . 26 8 . 2 30 22 3 1 6 . 30 3 4 9 . 17 6 4 2 4 22 Fast Attach 71 | 1 4 . 6 . . . 8 4 1 2 2 1 21 . . 6 . 3 3 1 . 3 5 Attach 157 | . 3 7 16 4 1 . 21 12 1 3 2 . 25 2 3 3 . 11 2 1 1 5 34 Detach 49 | . 4 . 4 . 1 . 6 4 . 2 1 . 6 . . 3 . 1 1 . . 1 15 Swap 359 | 1 15 1 21 8 . 1 10 32 19 6 5 5 66 9 22 14 3 28 24 13 2 26 28 Drop 190 | 4 8 . 8 3 1 . 19 23 2 3 6 1 32 2 1 13 1 17 18 9 2 6 11 Fire 194 | 9 27 4 45 4 . . 8 17 9 5 . . 10 9 10 . 3 3 . . . 12 19 Melee 1149 | . 1 4 109 16 . 3 203 95 21 11 5 7 213 13 45 45 3 106 25 16 3 78 127 Ram . | . . . . . . . . . . . . . . . . . . . . . . . . Kick 26 | . . 2 . . . . 9 1 . . . . 1 . 2 . . . 1 . . 1 9 Crush . | . . . . . . . . . . . . . . . . . . . . . . . . Escape Stasis 4 | . . . . . . . . . . . . . . . . . . . 4 . . . . Rewire 254 | . . . . . . . . . 4 . . . 8 19 5 . . . 218 . . . . Trap 6 | . . . . . . . . . . . . . 4 . . . . 2 . . . . . Miscellaneous . | . . . . . . . . . . . . . . . . . . . . . . . . Route ------- -11/Junkyard -10/Materials (discovered 5 exits: *Mat x3 / [*Min x2]) -10/Mines -9/Materials (discovered 4 exits: *Mat x3 / *Min) -9/Mines (discovered 3 exits: *Mat x2 / *Exi) -9/Exiles (discovered 2 exits: [*Min x2]) -8/Mines (discovered 2 exits: *Mat x2) -8/Materials (discovered 3 exits: *Fac x3) -7/Factory (discovered 5 exits: *Fac / Sto x2 / *Low x2) -7/Lower Caves -7/Lower Caves -7/Zion -6/Proximity Caves -6/Factory (discovered 6 exits: *Fac x4 / *Low x2) -6/Lower Caves -6/Lower Caves (discovered 2 exits: *Fac / *Dat) -6/Data Miner -5/Proximity Caves -5/Factory (discovered 8 exits: Fac x4 / *Upp x2 / *Ext x2) -5/Extension (discovered 3 exits: *Fac x2 / *Cet) -5/Cetus (discovered 2 exits: *Fac / [*Arc]) -5/Archives -5/Hub_04(d) (discovered 4 exits: *Fac x4) -4/Factory History --------- Turn | Location | Event 1 | -11/Junkyard | Discovered new exit (range 3) 69 | -11/Junkyard | Entered Materials 79 | -10/Materials | Discovered new exit (range 16) 281 | -10/Materials | Discovered new exit (range 4) 314 | -10/Materials | Build established: Mutant 521 | -10/Materials | Discovered new exit (range 3) 642 | -10/Materials | Central database locked down 823 | -10/Materials | Discovered new exit (range 8) 1077 | -10/Materials | Discovered new exit (range 14) 1331 | -10/Materials | Entered Mines 1340 | -10/Mines | Assembled infested the area 1373 | -10/Mines | Core integrity fell below 50% 1395 | -10/Mines | System corruption reached 10% 1406 | -10/Mines | Core integrity fell below 20% 1409 | -10/Mines | Discovered new exit (range 8) 1423 | -10/Mines | Entered Materials 1423 | -9/Materials | Evolved 2 slots: Propulsion x1, Utility x1 1449 | -9/Materials | Lost 7 parts (1p1n2u3w) 2384 | -9/Materials | Discovered new exit (range 7) 2461 | -9/Materials | Repaired Imp. Aluminum Leg 2514 | -9/Materials | Repaired Hvy. Ion Engine 3023 | -9/Materials | First assault squad dispatched 3448 | -9/Materials | Core integrity fell below 50% 3524 | -9/Materials | Destroyed 7 combat bots 3571 | -9/Materials | Discovered new exit (range 16) 3775 | -9/Materials | Discovered new exit (range 16) 3819 | -9/Materials | Sterilization system engaged 3819 | -9/Materials | Non-combat units ordered to evacuate 3919 | -9/Materials | Combat units ordered to evacuate 4053 | -9/Materials | Build established: Scavenger-Mutant 4119 | -9/Materials | Ambient heat levels rising (+10) 4189 | -9/Materials | Discovered new exit (range 9) 4269 | -9/Materials | Ambient heat levels rising (+10) 4332 | -9/Materials | Entered Mines 4344 | -9/Mines | Discovered new exit (range 7) 4492 | -9/Mines | Discovered new exit (range 11) 4741 | -9/Mines | Excavation squad dispatched 4741 | -9/Mines | A large section of the Mines collapsed 4982 | -9/Mines | Found a hidden stash of uninstalled traps 5039 | -9/Mines | Learned Materials garrison access intel 5203 | -9/Mines | Met a Derelict shopkeep closing up shop 5270 | -9/Mines | Deemed a non-threat by the Exiles lab entrance 5270 | -9/Mines | Discovered new exit (range 5) 5277 | -9/Mines | Entered Exiles 5308 | -9/Exiles | Discovered new exit (range 15) 5327 | -9/Exiles | Met 8R-AWN 5357 | -9/Exiles | Met EX-HEX 5450 | -9/Exiles | Met EX-DEC 5458 | -9/Exiles | Learned location of Zion (-7) 5614 | -9/Exiles | Discovered new exit (range 11) 5635 | -9/Exiles | Entered Mines 5656 | -8/Mines | Discovered new exit (range 6) 6016 | -8/Mines | Discovered new exit (range 8) 6361 | -8/Mines | Entered Materials 6361 | -8/Materials | Evolved 2 slots: Propulsion x1, Utility x1 6362 | -8/Materials | Loaded intel: 1 garrison access location 6830 | -8/Materials | Lost 6 parts (1p3n1u1w) 7328 | -8/Materials | Build established: Mutant 7476 | -8/Materials | Discovered new exit (range 8) 7490 | -8/Materials | Identified exit to Factory 7643 | -8/Materials | Repaired Hrd. Light Armor Plating 7689 | -8/Materials | Repaired Microactuators 7889 | -8/Materials | Discovered exit to Factory (range 4) 7961 | -8/Materials | First assault squad dispatched 8258 | -8/Materials | Found Powered Armor 8267 | -8/Materials | Found Powered Armor 8270 | -8/Materials | Found Powered Armor 8273 | -8/Materials | Found Powered Armor 8602 | -8/Materials | Discovered exit to Factory (range 11) 8628 | -8/Materials | Core integrity fell below 50% 9658 | -8/Materials | Build established: Scavenger-Mutant 9683 | -8/Materials | Sterilization system engaged 9683 | -8/Materials | Non-combat units ordered to evacuate 9783 | -8/Materials | Combat units ordered to evacuate 9983 | -8/Materials | Ambient heat levels rising (+10) 9994 | -8/Materials | Entered Factory 9994 | -7/Factory | Evolved 2 slots: Propulsion x1, Utility x1 10723 | -7/Factory | Identified exit to Storage 10723 | -7/Factory | Identified exit to Lower Caves 10993 | -7/Factory | Repaired Powered Armor 11046 | -7/Factory | Discovered new exit (range 12) 12089 | -7/Factory | Fabricated Adv. Reaction Control System (x1) 12213 | -7/Factory | Lost 3 parts (2n1u) 12754 | -7/Factory | Build established: Mutant 12778 | -7/Factory | Entered Lower Caves 12872 | -7/Lower Caves | Attracted the attention of an 0b10 outpost 13117 | -7/Lower Caves | Encountered a Warlord checkpoint 13843 | -7/Lower Caves | Discovered new exit (range 14) 13877 | -7/Lower Caves | Entered another Lower Caves area 14229 | -7/Lower Caves | Discovered new exit (range 12) 14233 | -7/Lower Caves | Learned Factory emergency access door positions 14390 | -7/Lower Caves | Spotted B-75 Beast 14416 | -7/Lower Caves | Build established: Gladiator 15014 | -7/Lower Caves | Entered Zion 15064 | -7/Zion | Discovered new exit (range 12) 15137 | -7/Zion | System corruption cleaned by Quarantine Array 15207 | -7/Zion | Learned Factory fabricator intel 15412 | -7/Zion | Found Unknown Piercing Weapon 15466 | -7/Zion | Given the Hacking Drone Bay 15466 | -7/Zion | Found Prototype Device 15617 | -7/Zion | Build established: Mutant 15645 | -7/Zion | Learned location of Armory (-3) 15652 | -7/Zion | Learned location of Warlord (-4) 15788 | -7/Zion | Found Prototype Device 15789 | -7/Zion | Identified Hacking Drone Bay 15792 | -7/Zion | Identified Mobile Refinery Mk. CCLXVII 15852 | -7/Zion | Received a visual enhancement algorithm 16386 | -7/Zion | Entered Proximity Caves 16795 | -6/Proximity Caves | Build established: Scavenger-Mutant 16860 | -6/Proximity Caves | Discovered new exit (range 10) 16910 | -6/Proximity Caves | System corruption reached 10% 16911 | -6/Proximity Caves | Entered Factory 16911 | -6/Factory | Evolved 2 slots: Utility x2 16913 | -6/Factory | Loaded intel: 6 fabricator locations 17187 | -6/Factory | Identified exit to Lower Caves 17386 | -6/Factory | Fabricated Adv. Actuator Array (x1) 17408 | -6/Factory | Identified exit to Factory 17774 | -6/Factory | Destroyed 10 combat bots 17903 | -6/Factory | Lost 5 parts (2n3u) 18131 | -6/Factory | Lost 3 parts (2n1u) 18311 | -6/Factory | First assault squad dispatched 18389 | -6/Factory | Build established: Mutant 18500 | -6/Factory | Lost 5 parts (1p1n3u) 18954 | -6/Factory | Build established: Scavenger-Mutant 19174 | -6/Factory | Fabricated Arm. Leg (x2) 19312 | -6/Factory | Build established: Mutant 19482 | -6/Factory | Fabricated Arm. Leg (x2) 20596 | -6/Factory | Entered Lower Caves 20636 | -6/Lower Caves | Attracted the attention of an 0b10 outpost 21143 | -6/Lower Caves | Attracted the attention of an 0b10 checkpoint 21264 | -6/Lower Caves | Encountered a Warlord checkpoint 21342 | -6/Lower Caves | Discovered new exit (range 5) 21362 | -6/Lower Caves | Entered another Lower Caves area 21362 | -6/Lower Caves | Accompanied by 1 ally 21364 | -6/Lower Caves | Attracted the attention of an 0b10 checkpoint 21422 | -6/Lower Caves | Discovered exit to Factory (range 7) 21438 | -6/Lower Caves | Learned Factory emergency access door positions 21476 | -6/Lower Caves | Attracted the attention of an 0b10 outpost 21547 | -6/Lower Caves | Core integrity fell below 50% 21831 | -6/Lower Caves | Build established: Machinist-Mutant 22237 | -6/Lower Caves | Discovered new exit (range 7) 22362 | -6/Lower Caves | Entered Data Miner 22362 | -6/Data Miner | Discovered new exit (range 6) 22385 | -6/Data Miner | Met Data Miner 22407 | -6/Data Miner | Learned location of Section 7 (-3) 22407 | -6/Data Miner | Acquired the access code to Warlord's prototype stash 22430 | -6/Data Miner | Received God Mode back door access code from Data Miner 22496 | -6/Data Miner | Data Conduit disabled 22595 | -6/Data Miner | System corruption reached 10% 22806 | -6/Data Miner | Found Prototype Device 22806 | -6/Data Miner | Identified Exp. Thermal Shield 22982 | -6/Data Miner | Entered Proximity Caves 22985 | -5/Proximity Caves | Spotter reported a threat 23079 | -5/Proximity Caves | Build established: Scavenger-Mutant 23478 | -5/Proximity Caves | Learned Factory emergency access door positions 23526 | -5/Proximity Caves | Discovered exit to Factory (range 9) 23574 | -5/Proximity Caves | Attracted the attention of an 0b10 checkpoint 23575 | -5/Proximity Caves | Learned location of 1 exit from Factory 23594 | -5/Proximity Caves | Entered Factory 23594 | -5/Factory | Evolved 2 slots: Power x1, Utility x1 23595 | -5/Factory | Identified exit to Upper Caves 23765 | -5/Factory | Identified exit to Extension 24398 | -5/Factory | Identified exit to Factory 24607 | -5/Factory | Fabricated Arm. Leg (x2) 24672 | -5/Factory | Identified CR-A16's Pointy Stick 25488 | -5/Factory | Entered Extension 25754 | -5/Extension | Rescued a captive Derelict 25754 | -5/Extension | Rescued a captive Derelict 25854 | -5/Extension | Identified exit to Cetus 26201 | -5/Extension | Build established: Commander-Mutant 26224 | -5/Extension | Spotted B-75 Beast 26233 | -5/Extension | Spotted B-75 Beast 26244 | -5/Extension | Destroyed B-75 Beast 26265 | -5/Extension | Revealed the true nature of CR-A16's Pointy Stick 26266 | -5/Extension | Allies destroyed B-75 Beast 26452 | -5/Extension | Rescued A7 26546 | -5/Extension | Rescued a captive Derelict 26662 | -5/Extension | Rescued a captive Derelict 26664 | -5/Extension | Rescued a captive Derelict 26756 | -5/Extension | Rescued a captive Derelict 26769 | -5/Extension | Rescued a captive Derelict 26895 | -5/Extension | Entered Cetus 26895 | -5/Cetus | Accompanied by 16 allies (A7) 26900 | -5/Cetus | Acquired a Cetus Manufacturing Module code from A7 26915 | -5/Cetus | Spotted Cetus Guard 26915 | -5/Cetus | Spotted Cetus Guard 26917 | -5/Cetus | Spotted Cetus Guard 26919 | -5/Cetus | Spotted Cetus Guard 26931 | -5/Cetus | Destroyed Cetus Guard 26933 | -5/Cetus | Allies destroyed Cetus Guard 26938 | -5/Cetus | Allies destroyed Cetus Guard 26938 | -5/Cetus | Allies destroyed Cetus Guard 27027 | -5/Cetus | Started Cetus Manufacturing Module 27052 | -5/Cetus | Manufactured an Enhanced Grunt 27063 | -5/Cetus | Escorted A7 to Cetus Mainframe 27077 | -5/Cetus | Manufactured an Enhanced Grunt 27102 | -5/Cetus | Manufactured an Enhanced Grunt 27127 | -5/Cetus | Manufactured an Enhanced Grunt 27152 | -5/Cetus | Manufactured an Enhanced Grunt 27182 | -5/Cetus | Discovered new exit (range 15) 27204 | -5/Cetus | Spotted Cetus Guard 27204 | -5/Cetus | Spotted Cetus Guard 27208 | -5/Cetus | Spotted Cetus Guard 27208 | -5/Cetus | Spotted Cetus Guard 27212 | -5/Cetus | Discovered exit to Factory (range 16) 27220 | -5/Cetus | Destroyed Cetus Guard 27223 | -5/Cetus | Allies destroyed Cetus Guard 27228 | -5/Cetus | Allies destroyed Cetus Guard 27233 | -5/Cetus | Allies destroyed Cetus Guard 27234 | -5/Cetus | Met Revision 17 27423 | -5/Cetus | Entered Archives 27423 | -5/Archives | Accompanied by 10 allies (A7) 27428 | -5/Archives | Received a hacking code to weaken MAIN.C 27594 | -5/Archives | Build established: Scavenger-Mutant 30027 | -5/Archives | Discovered new exit (range 16) 30103 | -5/Archives | Entered Hub_04(d) 30103 | -5/Hub_04(d) | Accompanied by 3 allies 30141 | -5/Hub_04(d) | Discovered exit to Factory (range 7) 31532 | -5/Hub_04(d) | Network Hub disabled 31539 | -5/Hub_04(d) | Network Hub disabled 31547 | -5/Hub_04(d) | Entered Factory 31547 | -4/Factory | Evolved 2 slots: Utility x1, Weapon x1 32160 | -4/Factory | Spotted B-86 Titan 32172 | -4/Factory | Destroyed B-86 Titan 32183 | -4/Factory | Fabricated Arm. Leg (x2) 32433 | -4/Factory | Lost 3 parts (2n1u) 32952 | -4/Factory | Destroyed 7 combat bots 33047 | -4/Factory | First assault squad dispatched 33074 | -4/Factory | System corruption reached 10% 33201 | -4/Factory | Destroyed 8 combat bots 33202 | -4/Factory | Lost 3 parts (1p1u1w) 33322 | -4/Factory | Spotted B-86 Titan 33785 | -4/Factory | Lost 10 parts (2p5n3u) 33816 | -4/Factory | Core integrity fell below 50% 33825 | -4/Factory | Released all parts (8) 33851 | -4/Factory | Lost 7 parts (1p4n1u1w) 33918 | -4/Factory | Core integrity fell below 20% 33922 | -4/Factory | Destroyed by C-35 Carver with Improved Concussive RPG Last Messages --------------- 33843_ W-44 Eye sends out distress signal. 33846_ Subcomponent Replicator disabled. 33846_ Slug penetrates Wall. 33849_ Connecting with Terminal... 33849_ ALERT: Suspicious activity at Terminal F010. Dispatching Investigation squad. 33849_ Terminal disabled. 33854_ Penetrated by Slug. 33894_ System corrupted: Substantial component data lost. 33902_ Dropped Adv. Energy Well. 33903_ Extracted 69 energy. 33903_ Acquired Adv. Energy Well. 33911_ VE8V:6ROQ5AP:|5DWW/PH#EO 4N&F KPZW 33912_ ALERT: Suspicious intruders detected, dispatching Cutter reinforcements to area. 33915_ Knocked back. 33917_ Penetrated by Slug. 33919_ CR-A16's Behemoth Slayer destroyed. 33919_ Critical hit (Blast). 33919_ Knocked back. Map ----- +----------------------------------------------------+ | ????????????????????????? ?? ?????#??#?###### | | ???????????????????????????????###?##??##??## | | ???????????????????????????????##?###??####?# | | ??????????????????????"???????#??#?##?##?#### = ! | | ????????????????????????? ??#???#??###?##### | | ??????????????????????"???"???##?######?##### | | ?????????????????????? ????? ##?#?#???###?#?# | | ??????????????????????#??#?####??#?########## | | ???????????????????????? ???#??##??##?############ | | ?????????????????????? ????#####??????## | | ??????????????????????? #?#?###?##?### | | ??????????????????? ??#?#####?#### | | ???????????????????? w ###???##?#?### | | ?????????????????#?#?# #?#?####?#??## | | ?????????????? ?? ??## ##########?### | | ??????????????? ?? ??# #?########??## | | ?????????????????"???#c ##?## ###### | | ??????????????????" ?# ##### #### | | ??????????????? ??"??# #?#?# ### #### | | ?????????????????? ?#k ######+#### #### | | ??????????????????" ?#c # ==# ###? | | ????????????????""? ?# # = ######+###### | | ????????????????????## # """ # | | ??????????????? ??? ?# # """ # | | ?????????????????????# + """ " " # | | ??????????????????#??# @ # "G" # | | ??????????????????#??# % # " # | | ???????????????#???#### ## # | | ????????????????????#?# ############ | | ???????????????#??#??## #??? ? ????# | | ????????????????#????#; %###?? ?# | | ????????????????????### ###???"?" ?# | | ????????????????#???# # ????" ?# | | ???????????????????## #?? ?????# | | ???????????????###### #????? ############# | | ???????????????+ % H + ?"""? ?#?###??####? | | ?????????????+?#####" # ??"?? ?##########?# | | ???????????????? # # ????? ???##?####### | | ????????????"""""" # #?? ?? ?#??#?##??##?# | | ???????????? ?####p####????""??####?##?###?? | | ????????????"""""" ??# # ???"?? ????#?#?#??## | | ????????????? ???#%""" #???????????##??#?#??# | | ?????????????"""""???# """ #??????? ??????#???### | | ????????????? ????# """ #?????????????#?#?#??? | | ?????????????????????# #????????????????#?#?? | | ?????????????????????# #???????????????#?#### | | ???????????????????+?# #?????????????#####??# | | ?????????????????????# #??????????????####??? | | ?????????????????????# """ #????????????#??###### | | ?????????????????????# "R #???????????##?###??## | +----------------------------------------------------+ Best States ------------- Heat Dissipation 43 Energy Generation 41 Energy Capacity 575 Matter Stores 300 Matter Capacity 300 Sight Range 16 Terrain Scan Range 20 Terrain Scan Density 210 ECM Strength 1 Jamming Range 12 Armor Coverage 825 Resistance: KI 30 Resistance: TH 30 Melee Speed Boost 20 Evasion (%) 55 Melee Accuracy 16 Core Analysis 6 Force Boost 30 Offensive Hacking 28 Trap Extractor Capacity 4 Item Schematics ----------------- Microactuators | -8/Materials | Scanalyzed Hacking Suite | -8/Materials | Scanalyzed Plasma Cutter | -8/Materials | Scanalyzed Arm. Leg | -6/Factory | Scanalyzed Combat Drone Bay | -6/Data Miner | Free Lgt. Regenerative Plating | -6/Data Miner | Free Enh. Flexi-carbon Leg | -6/Data Miner | Free Prc. Matter Filter | -6/Data Miner | Free Hvy. Proton Cannon | -6/Data Miner | Free Adv. Medium Treads | -6/Data Miner | Free Adv. Power Amplifier | -6/Data Miner | Free Hardcell Cannon | -6/Data Miner | Free Imp. Corruption Screen | -6/Data Miner | Free Adv. Transmission Jammer | -6/Data Miner | Free Lyr. Heavy Armor Plating | -5/Factory | Scanalyzed Robot Schematics ------------------ S-27 Virus | -6/Data Miner | Free B-48 Gladiator | -6/Data Miner | Free Y-54 Guardian | -6/Data Miner | Free A-15 Conveyor | -6/Data Miner | Free Fabricated ------------ Adv. Reaction Control System | x1 | -7/Factory | Preloaded Adv. Actuator Array | x1 | -6/Factory | Preloaded Arm. Leg | x2 | -6/Factory Arm. Leg | x2 | -6/Factory Arm. Leg | x2 | -5/Factory Arm. Leg | x2 | -4/Factory Alien Tech Used ----------------- None Achievements -------------- Ambidextrous Gladiator Challenges ------------ None Game ------ Seed LegGravitonBox Manual? 0 Play Time 06:24:30 Cumulative 82.9 hours Start 2023.11.08 @ 02:24:43 End 2023.11.10 @ 13:06:26 Sessions 6 Manual Loads 0 Difficulty Rogue Special Mode None Game No. 21 Rogue 21 Adventurer 0 Explorer 0 Win Type - Total 4 Types 3/0/1/0/0/0/0/0/0 Lore% 52 Gallery% 61 Achievement% 57 Wizard Run 0 Options --------- ASCII 0 Keyboard 1 Movement Numpad Keybinds 0 Fullscreen 1 Font 12/Terminus Map View 83x54 Tactical HUD 1 Map Filters NONE Filters NONE Steam 0 RUN: 62794480-6e8a-4542-afc9-a102ff540cea